bitfinex-derivatives/quotes_BTCF0:USTF0_20251202
["timestamp","ask_amount","ask_price","bid_price","bid_amount"]
[1764654986360,0.00117236,87016.0,87015.0,0.069993]
[1764654986562,0.00117236,87016.0,87015.0,0.1113462]
[1764654986964,0.05844236,87016.0,87015.0,0.1113462]
[1764654989255,0.05844236,87016.0,87015.0,0.069993]
[1764654990166,0.05844236,87016.0,87015.0,0.1279162]
[1764654990868,0.05844236,87016.0,87015.0,0.1113462]
[1764654991557,0.05844236,87016.0,87015.0,0.087713]
[1764654993867,0.00117236,87016.0,87015.0,0.1290662]
[1764654994272,0.00117236,87016.0,87015.0,0.087713]
[1764654996961,0.00117236,87016.0,87015.0,0.14977986]
[1764654997165,0.00117236,87016.0,87015.0,0.64977986]
[1764654997860,0.00017236,87016.0,87015.0,0.64977986]
[1764654998066,0.57454551,87030.0,87029.0,0.0685812]
[1764654998263,0.42674,87030.0,87029.0,0.0685812]
[1764654999983,0.42774,87030.0,87029.0,0.0685812]
[1764655000282,0.43074,87030.0,87029.0,0.0685812]
[1764655009292,0.004,87030.0,87029.0,0.13064806]
[1764655009479,0.06074,87030.0,87029.0,0.0685812]
[1764655009679,0.06074,87030.0,87029.0,0.5685812]
[1764655010088,0.06074,87030.0,87029.0,1.0685812]
[1764655012191,0.06074,87030.0,87029.0,1.13052143]
[1764655013282,0.06074,87030.0,87029.0,1.0685812]
[1764655018294,0.21074,87030.0,87029.0,1.0685812]
[1764655018798,0.21074,87030.0,87029.0,0.5685812]
[1764655018992,0.21074,87030.0,87029.0,0.0685812]
[1764655020097,0.004,87030.0,87029.0,0.0685812]
[1764655021202,0.004,87030.0,87029.0,0.10985113]
[1764655021590,0.004,87030.0,87029.0,0.60985113]
[1764655022091,0.004,87030.0,87029.0,1.10985113]
[1764655022706,0.06157289,87060.0,87057.0,0.05483]
[1764655022889,0.06157289,87069.0,87068.0,0.038786]
[1764655023085,0.06157289,87082.0,87081.0,0.0114843]
[1764655023293,0.05921,87082.0,87081.0,0.0663143]
[1764655023790,0.00017225,87090.0,87087.0,0.0199335]
[1764655024088,0.05938225,87090.0,87089.0,0.41563]
[1764655025906,0.06138225,87090.0,87089.0,0.41563]
[1764655026310,0.05938225,87090.0,87089.0,0.41563]
[1764655026500,0.06138225,87090.0,87089.0,0.41563]
[1764655026800,0.00217225,87090.0,87089.0,0.41563]
[1764655027406,0.00017225,87090.0,87089.0,0.41563]
[1764655027605,0.00117225,87090.0,87089.0,0.41563]
[1764655029305,0.03089225,87090.0,87089.0,0.41563]
[1764655030105,0.06038225,87090.0,87089.0,0.41563]
[1764655031501,0.00117225,87090.0,87089.0,0.41563]
[1764655032800,0.00117225,87090.0,87089.0,0.91563]
[1764655033604,0.06038225,87090.0,87089.0,0.91563]
[1764655034002,0.03089225,87090.0,87089.0,0.91563]
[1764655035109,0.00117225,87090.0,87089.0,0.91563]
[1764655035305,0.03089225,87090.0,87089.0,0.91563]
[1764655037112,0.06038225,87090.0,87089.0,0.8608]
[1764655037317,0.06038225,87090.0,87089.0,0.5]
[1764655037318,0.51038225,87090.0,87089.0,0.5]
[1764655037820,0.05921,87086.0,87085.0,0.0114838]
[1764655039717,0.19,87086.0,87081.0,0.0114842]
[1764655039918,0.05921,87082.0,87081.0,0.0387842]
[1764655040109,0.12921,87082.0,87081.0,0.0387842]
[1764655041020,0.12921,87082.0,87081.0,0.0663142]
[1764655042520,0.13121,87082.0,87081.0,0.0663142]
[1764655042825,0.38121,87082.0,87081.0,0.0114842]
[1764655043523,0.05921,87081.0,87080.0,0.3608]
[1764655043734,0.48921,87081.0,87080.0,0.3608]
[1764655044025,0.5006943,87081.0,87080.0,0.3608]
[1764655044428,0.24921,87081.0,87080.0,0.3608]
[1764655045327,0.25121,87081.0,87080.0,0.3608]
[1764655045730,0.48121,87081.0,87080.0,0.3608]
[1764655047122,0.48221,87081.0,87080.0,0.3608]
[1764655047324,0.48321,87081.0,87080.0,0.3608]
[1764655049134,0.48321,87081.0,87080.0,0.3881]
[1764655051031,0.48321,87081.0,87080.0,0.3608]
[1764655051239,0.48221,87081.0,87080.0,0.3608]
[1764655051433,0.48321,87081.0,87080.0,0.3608]
[1764655051627,0.48021,87081.0,87080.0,0.3608]
[1764655051839,0.0706952,87074.0,87073.0,0.00017225]
[1764655052028,0.4906952,87074.0,87073.0,0.00017225]
[1764655052932,0.4916952,87074.0,87073.0,0.00017225]
[1764655053126,0.2146952,87074.0,87073.0,0.00017225]
[1764655053434,0.4446952,87074.0,87073.0,0.00017225]
[1764655053732,0.4456952,87074.0,87073.0,0.00017225]
[1764655055926,0.4446952,87074.0,87073.0,0.00017225]
[1764655056137,0.4416952,87074.0,87073.0,0.00017225]
[1764655056334,0.4466952,87074.0,87073.0,0.00017225]
[1764655058136,0.0394173,87058.0,87057.0,0.03969702]
[1764655058326,0.0394173,87058.0,87057.0,0.06819702]
[1764655058327,0.0686273,87058.0,87057.0,0.06819702]
[1764655058748,0.0686273,87058.0,87056.0,0.3608]
[1764655058749,0.05714,87057.0,87056.0,0.3608]
[1764655058934,0.05714,87057.0,87056.0,0.41747]
[1764655059845,0.05714,87057.0,87056.0,0.42925217]
[1764655060051,0.05914,87057.0,87056.0,0.42925217]
[1764655060949,0.06014,87057.0,87056.0,0.42925217]
[1764655061529,0.05914,87057.0,87056.0,0.42925217]
[1764655061739,0.06014,87057.0,87056.0,0.42925217]
[1764655062940,0.06014,87057.0,87056.0,0.41747]
[1764655063344,0.50014,87057.0,87056.0,0.3608]
[1764655063543,0.05714,87049.0,87048.0,0.41764225]
[1764655063849,0.0686285,87049.0,87048.0,0.41764225]
[1764655064148,0.05714,87049.0,87048.0,0.41764225]
[1764655065149,0.05814,87049.0,87048.0,0.41764225]
[1764655066259,0.05914,87049.0,87048.0,0.41764225]
[1764655067856,0.44014,87049.0,87048.0,0.41764225]
[1764655074358,0.003,87049.0,87048.0,0.42913095]
[1764655074864,0.06014,87049.0,87048.0,0.42913095]
[1764655076063,0.05914,87049.0,87048.0,0.42913095]
[1764655079262,0.002,87049.0,87048.0,0.42913095]
[1764655081465,0.0394176,87057.0,87056.0,0.05667]
[1764655081665,0.0594176,87057.0,87056.0,0.05667]
[1764655081865,0.0886276,87057.0,87056.0,0.05667]
[1764655082569,0.0906276,87057.0,87056.0,0.05667]
[1764655082760,0.07914,87057.0,87056.0,0.05667]
[1764655082961,0.08014,87057.0,87056.0,0.05667]
[1764655083469,0.29014,87057.0,87056.0,0.05667]
[1764655086972,0.06014,87057.0,87056.0,0.05667]
[1764655087173,0.05814,87057.0,87056.0,0.05667]
[1764655087371,0.06014,87057.0,87056.0,0.05667]
[1764655088468,0.003,87057.0,87056.0,0.05667]
[1764655088660,0.003,87057.0,87056.0,0.45874184]
[1764655088866,0.003,87057.0,87056.0,0.41747]
[1764655089065,0.002,87057.0,87056.0,0.41747]
[1764655089266,0.003,87057.0,87056.0,0.91747]
[1764655089665,0.0023082,87057.0,87056.0,1.41747]
[1764655089867,0.0013082,87057.0,87056.0,1.41747]
[1764655090376,0.00017225,87065.0,87064.0,0.0679366]
[1764655090560,0.00017225,87065.0,87064.0,0.4287366]
[1764655091577,0.00417225,87065.0,87064.0,0.4287366]
[1764655092176,0.00417225,87065.0,87064.0,0.47001121]
[1764655093268,0.00417225,87065.0,87064.0,0.4287366]
[1764655098974,0.06265225,87065.0,87064.0,0.4287366]
[1764655099176,0.00417225,87065.0,87064.0,0.4287366]
[1764655099684,0.00417225,87065.0,87064.0,0.47001121]
[1764655100577,0.00417225,87065.0,87064.0,0.97001121]
[1764655102275,0.00417225,87065.0,87064.0,0.9287366]
[1764655105376,0.06265225,87065.0,87064.0,0.9287366]
[1764655106171,0.06265225,87065.0,87064.0,0.96995797]
[1764655106370,0.06265225,87065.0,87064.0,0.4287366]
[1764655107289,0.00417225,87065.0,87064.0,0.4287366]
[1764655107678,0.03281225,87065.0,87064.0,0.4287366]
[1764655109187,0.00417225,87065.0,87064.0,0.4287366]
[1764655109393,0.00417225,87065.0,87064.0,0.46995797]
[1764655109595,0.00417225,87065.0,87064.0,0.4287366]
[1764655111196,0.23236946,87090.0,87089.0,0.0679333]
[1764655111384,0.31551,87090.0,87089.0,0.0679333]
[1764655112398,0.31751,87090.0,87089.0,0.0679333]
[1764655112785,0.32351,87090.0,87089.0,0.0679333]
[1764655113985,0.32351,87090.0,87089.0,0.0793866]
[1764655114594,0.32351,87090.0,87089.0,0.05645]
[1764655114799,0.32351,87090.0,87082.0,0.3608]
[1764655114800,0.0114841,87084.0,87083.0,0.011484]
[1764655115098,0.46804,87084.0,87083.0,0.011484]
[1764655115884,0.47004,87084.0,87083.0,0.011484]
[1764655116498,0.47004,87084.0,87083.0,0.039464]
[1764655117802,0.47004,87084.0,87083.0,0.011484]
[1764655119484,0.0114841,87083.0,87081.0,0.00017225]
[1764655119690,0.05846,87082.0,87081.0,0.00017225]
[1764655119891,0.48846,87082.0,87081.0,0.00017225]
[1764655122300,0.49046,87082.0,87081.0,0.00017225]
[1764655123107,0.48946,87082.0,87081.0,0.00017225]
[1764655125910,0.48846,87082.0,87081.0,0.00017225]
[1764655126096,0.48946,87082.0,87081.0,0.00017225]
[1764655129103,0.01292,87072.0,87068.0,0.04124037]
[1764655129305,0.0857281,87052.0,87049.0,0.06186056]
[1764655129503,0.05724,87046.0,87045.0,0.0693991]
[1764655129813,0.05724,87046.0,87045.0,0.08066468]
[1764655132418,0.05824,87046.0,87045.0,0.08066468]
[1764655133213,0.05724,87046.0,87045.0,0.08066468]
[1764655138612,0.05724,87046.0,87045.0,0.44146468]
[1764655139220,0.02785,87052.0,87051.0,0.05791]
[1764655139419,0.02802225,87054.0,87053.0,0.05791]
[1764655139626,0.02802225,87054.0,87053.0,0.41871]
[1764655139819,0.00017225,87054.0,87053.0,0.41871]
[1764655140122,0.05741225,87054.0,87053.0,0.41871]
[1764655141129,0.05841225,87054.0,87053.0,0.41871]
[1764655141732,0.05941225,87054.0,87053.0,0.41871]
[1764655143030,0.00217225,87054.0,87053.0,0.41871]
[1764655143238,0.06025225,87054.0,87053.0,0.41871]
[1764655144116,0.05925225,87054.0,87053.0,0.41871]
[1764655144634,0.05825225,87054.0,87053.0,0.41871]
[1764655145521,0.05925225,87054.0,87053.0,0.41871]
[1764655146832,0.00117225,87054.0,87053.0,0.41871]
[1764655147739,0.00017225,87054.0,87053.0,0.41871]
[1764655150136,0.00017225,87054.0,87053.0,0.41971]
[1764655151942,0.46476,87068.0,87067.0,0.0571]
[1764655152243,0.53927549,87068.0,87067.0,0.0571]
[1764655153038,0.53927549,87068.0,87067.0,0.0685862]
[1764655153237,0.08259549,87068.0,87067.0,0.0685862]
[1764655153546,0.001,87068.0,87067.0,0.0685862]
[1764655154054,0.03193,87068.0,87067.0,0.0685862]
[1764655154641,0.05908,87068.0,87067.0,0.0114862]
[1764655154835,0.05908,87068.0,87067.0,0.0412462]
[1764655155342,0.07602,87065.0,87064.0,0.0114865]
[1764655155530,0.12602,87065.0,87064.0,0.0412465]
[1764655155727,0.05808,87064.0,87063.0,0.3608]
[1764655156042,0.07808,87064.0,87063.0,0.39056]
[1764655156443,0.05808,87064.0,87063.0,0.4179]
[1764655157745,0.05908,87064.0,87063.0,0.4179]
[1764655158240,0.001,87064.0,87063.0,0.4179]
[1764655158746,0.002,87064.0,87063.0,0.4179]
[1764655159630,0.001,87064.0,87063.0,0.4179]
[1764655160345,0.0875052,87075.0,87074.0,0.0571]
[1764655160550,0.34205402,87075.0,87074.0,0.0571]
[1764655161351,0.31262882,87075.0,87074.0,0.0571]
[1764655161646,0.33056882,87075.0,87074.0,0.0571]
[1764655161848,0.33256882,87075.0,87074.0,0.0571]
[1764655162438,0.33356882,87075.0,87074.0,0.0571]
[1764655166251,0.01794,87070.0,87068.0,0.0114859]
[1764655166438,0.08262882,87069.0,87068.0,0.0114859]
[1764655166748,0.37262882,87069.0,87068.0,0.0412459]
[1764655167054,0.37262882,87069.0,87068.0,0.0685859]
[1764655168443,0.37362882,87069.0,87068.0,0.0685859]
[1764655168947,0.37462882,87069.0,87068.0,0.0685859]
[1764655169245,0.05808,87067.0,87066.0,0.0114862]
[1764655169451,0.35262882,87067.0,87066.0,0.0114862]
[1764655169654,0.35262882,87067.0,87066.0,0.0412462]
[1764655170450,0.05808,87064.0,87063.0,0.3608]
[1764655170753,0.17262882,87064.0,87063.0,0.3608]
[1764655171248,0.17262882,87064.0,87063.0,0.39056]
[1764655171552,0.17262882,87064.0,87063.0,0.41809]
[1764655173058,0.17362882,87064.0,87063.0,0.05729]
[1764655174248,0.17462882,87064.0,87063.0,0.05729]
[1764655174955,0.07285,87060.0,87059.0,0.42886935]
[1764655175251,0.26285,87060.0,87059.0,0.42886935]
[1764655176062,0.26385,87060.0,87059.0,0.42886935]
[1764655176358,0.28836684,87060.0,87059.0,0.42886935]
[1764655177456,0.28936684,87060.0,87059.0,0.42886935]
[1764655177756,0.28836684,87060.0,87059.0,0.42886935]
[1764655177950,0.28936684,87060.0,87059.0,0.42886935]
[1764655178457,0.28836684,87060.0,87059.0,0.42886935]
[1764655179550,0.08117684,87060.0,87059.0,0.42886935]
[1764655180758,0.08017684,87060.0,87059.0,0.42886935]
[1764655181054,0.08117684,87060.0,87059.0,0.42886935]
[1764655181751,0.08017684,87060.0,87059.0,0.42886935]
[1764655182444,0.08117684,87060.0,87059.0,0.42886935]
[1764655184150,0.08017684,87060.0,87059.0,0.42886935]
[1764655185646,0.08117684,87060.0,87059.0,0.42886935]
[1764655187262,0.08017684,87060.0,87059.0,0.42886935]
[1764655188162,0.08117684,87060.0,87059.0,0.42886935]
[1764655191658,0.08017684,87060.0,87059.0,0.42886935]
[1764655191864,0.08117684,87060.0,87059.0,0.42886935]
[1764655193880,0.08117684,87060.0,87059.0,0.06806935]
[1764655194460,0.05335684,87060.0,87059.0,0.06806935]
[1764655195556,0.02551684,87060.0,87059.0,0.06806935]
[1764655196371,0.02451684,87060.0,87059.0,0.06806935]
[1764655196969,0.05235684,87060.0,87059.0,0.06806935]
[1764655197361,0.08017684,87060.0,87059.0,0.06806935]
[1764655200376,0.53736684,87060.0,87059.0,0.00017225]
[1764655201275,0.53836684,87060.0,87059.0,0.00017225]
[1764655201869,0.0671485,87049.0,87048.0,0.3608]
[1764655202067,0.05566,87042.0,87041.0,0.45134056]
[1764655202376,0.53017684,87042.0,87041.0,0.42863247]
[1764655203469,0.05566,87042.0,87041.0,0.42863247]
[1764655205560,0.00017225,87050.0,87049.0,0.0698085]
[1764655205968,0.0245661,87050.0,87049.0,0.0698085]
[1764655206671,0.00017225,87050.0,87049.0,0.0698085]
[1764655207276,0.02842225,87050.0,87049.0,0.0698085]
[1764655208066,0.00017225,87050.0,87049.0,0.0698085]
[1764655212179,0.02842225,87050.0,87049.0,0.0698085]
[1764655215784,0.02842225,87050.0,87049.0,0.5698085]
[1764655216174,0.00017225,87050.0,87049.0,0.5698085]
[1764655217085,0.02842225,87050.0,87049.0,0.5698085]
[1764655219181,0.05741225,87050.0,87049.0,0.5698085]
[1764655223483,0.02842225,87050.0,87049.0,0.5698085]
[1764655224679,0.00017225,87050.0,87049.0,0.5698085]
[1764655226377,0.02842225,87050.0,87049.0,0.5698085]
[1764655226885,0.05741225,87050.0,87049.0,0.5698085]
[1764655228389,0.05941225,87050.0,87049.0,0.63166906]
[1764655231400,0.03042225,87050.0,87049.0,0.63166906]
[1764655232691,0.03042225,87050.0,87049.0,0.5698085]
[1764655233392,0.0549779,87050.0,87049.0,0.5698085]
[1764655234899,0.0831479,87050.0,87049.0,0.5698085]
[1764655237095,0.0831479,87050.0,87049.0,0.9306085]
[1764655238094,0.5131479,87050.0,87049.0,0.9010685]
[1764655238686,0.5131479,87050.0,87049.0,0.88958]
[1764655239297,0.5131479,87050.0,87049.0,0.91768]
[1764655239492,0.5131479,87050.0,87049.0,0.88958]
[1764655239695,0.5131479,87050.0,87049.0,0.8608]
[1764655239998,0.5131479,87050.0,87049.0,0.3608]
[1764655240890,0.0674785,87049.0,87048.0,0.0114886]
[1764655241201,0.49203415,87049.0,87048.0,0.0114886]
[1764655241589,0.05599,87046.0,87045.0,0.067549]
[1764655241901,0.46054565,87046.0,87045.0,0.067549]
[1764655242290,0.0674795,87042.0,87041.0,0.05606]
[1764655242493,0.0114905,87035.0,87033.0,0.01166285]
[1764655242689,0.05599,87034.0,87033.0,0.14123987]
[1764655243205,0.05599,87034.0,87033.0,0.57937931]
[1764655243892,0.05699,87034.0,87033.0,0.57937931]
[1764655244299,0.001,87034.0,87033.0,0.57937931]
[1764655244598,0.00017225,87050.0,87049.0,0.0675485]
[1764655244802,0.27070634,87050.0,87049.0,0.0675485]
[1764655246393,0.27170634,87050.0,87049.0,0.0675485]
[1764655258116,0.08170634,87050.0,87049.0,0.0675485]
[1764655258813,0.02571634,87050.0,87049.0,0.0675485]
[1764655259022,0.00117225,87050.0,87049.0,0.0675485]
[1764655259213,0.00117225,87050.0,87049.0,0.12950061]
[1764655259515,0.02952225,87050.0,87049.0,0.12950061]
[1764655259903,0.00117225,87050.0,87049.0,0.12950061]
[1764655260109,0.00117225,87050.0,87049.0,0.4283485]
[1764655260308,0.02852225,87050.0,87049.0,0.4283485]
[1764655261432,0.02852225,87050.0,87049.0,0.9283485]
[1764655262127,0.05616225,87050.0,87049.0,0.9283485]
[1764655262621,0.05616225,87050.0,87049.0,0.99028316]
[1764655263719,0.05616225,87050.0,87049.0,0.9283485]
[1764655264710,0.05616225,87050.0,87049.0,0.88876]
[1764655265009,0.05616225,87050.0,87049.0,0.3608]
[1764655265010,0.51213887,87050.0,87049.0,0.3608]
[1764655267416,0.05604,87039.0,87038.0,0.0699399]
[1764655267719,0.05604,87039.0,87038.0,0.02878]
[1764655267720,0.49604,87039.0,87038.0,0.02878]
[1764655267915,0.05604,87035.0,87034.0,0.43422506]
[1764655268115,0.48604,87035.0,87034.0,0.4307404]
[1764655268421,0.48604,87035.0,87034.0,0.99271593]
[1764655270320,0.05604,87035.0,87034.0,0.99271593]
[1764655273914,0.0290093,87044.0,87043.0,0.0699393]
[1764655273915,0.07356,87044.0,87043.0,0.0699393]
[1764655274222,0.1480532,87044.0,87043.0,0.0699393]
[1764655274620,0.3580532,87044.0,87043.0,0.0699393]
[1764655275118,0.3600532,87044.0,87043.0,0.0699393]
[1764655285923,0.05604,87035.0,87034.0,0.45244553]
[1764655286123,0.05604,87035.0,87034.0,0.4307405]
[1764655286725,0.05604,87035.0,87034.0,0.9307405]
[1764655288126,0.05604,87035.0,87034.0,0.4307405]
[1764655288526,0.05604,87044.0,87043.0,0.0699393]
[1764655288731,0.05621225,87050.0,87049.0,0.05845]
[1764655288921,0.28069267,87050.0,87049.0,0.05845]
[1764655289832,0.09821267,87050.0,87049.0,0.05845]
[1764655291027,0.09921267,87050.0,87049.0,0.05845]
[1764655291228,0.10221267,87050.0,87049.0,0.05845]
[1764655293620,0.08469267,87050.0,87049.0,0.05845]
[1764655294936,0.02865267,87050.0,87049.0,0.05845]
[1764655295138,0.05574267,87050.0,87049.0,0.05845]
[1764655295339,0.05374267,87050.0,87049.0,0.05845]
[1764655295541,0.08313267,87050.0,87049.0,0.05845]
[1764655296845,0.05616,87049.0,87048.0,0.3608]
[1764655297035,0.08064042,87049.0,87048.0,0.38954]
[1764655297436,0.46212892,87049.0,87048.0,0.3608]
[1764655298037,0.05616,87043.0,87042.0,0.06197553]
[1764655298236,0.47616,87043.0,87042.0,0.0114895]
[1764655300045,0.47816,87043.0,87042.0,0.0114895]
[1764655300546,0.0842897,87040.0,87039.0,0.06197553]
[1764655300745,0.05616,87034.0,87033.0,0.08200931]
[1764655304646,0.48616,87034.0,87033.0,0.08200931]
[1764655305148,0.48616,87034.0,87033.0,0.05205931]
[1764655305337,0.48616,87034.0,87033.0,0.08200931]
[1764655311945,0.48616,87034.0,87033.0,0.05205931]
[1764655312135,0.48616,87034.0,87033.0,0.04056871]
[1764655313443,0.05616,87034.0,87033.0,0.07051871]
[1764655313649,0.09616,87034.0,87033.0,0.07051871]
[1764655314853,0.05616,87034.0,87033.0,0.07051871]
[1764655320859,0.47616,87034.0,87033.0,0.07051871]
[1764655321359,0.47616,87034.0,87033.0,0.02891225]
[1764655321562,0.47616,87034.0,87033.0,0.00017225]
[1764655322057,0.47616,87034.0,87033.0,0.02891225]
[1764655322262,0.47616,87034.0,87033.0,0.05886225]
[1764655322661,0.23616,87034.0,87033.0,0.05886225]
[1764655325266,0.26057953,87034.0,87033.0,0.05886225]
[1764655326859,0.08057953,87034.0,87033.0,0.05886225]
[1764655329362,0.02441953,87034.0,87033.0,0.05886225]
[1764655329562,0.0837387,87048.0,87047.0,0.05717]
[1764655329762,0.29818094,87048.0,87047.0,0.05717]
[1764655330562,0.29918094,87048.0,87047.0,0.05717]
[1764655330865,0.05561,87039.0,87038.0,0.11920587]
[1764655331070,0.08005224,87039.0,87038.0,0.11920587]
[1764655331374,0.08005224,87039.0,87038.0,0.05717]
[1764655332366,0.08105224,87039.0,87038.0,0.05717]
[1764655333265,0.05661,87039.0,87038.0,0.05717]
[1764655333677,0.05661,87039.0,87038.0,0.11920587]
[1764655334376,0.05661,87039.0,87038.0,0.05717]
[1764655335078,0.05561,87038.0,87037.0,0.43432597]
[1764655335262,0.05561,87038.0,87037.0,0.46398597]
[1764655335570,0.05561,87038.0,87037.0,0.49149597]
[1764655336486,0.05661,87038.0,87037.0,0.49149597]
[1764655336679,0.05661,87038.0,87037.0,0.4294601]
[1764655337979,0.20661,87038.0,87037.0,0.4228091]
[1764655338371,0.20661,87038.0,87037.0,0.4799791]
[1764655340581,0.20661,87038.0,87037.0,0.41797]
[1764655340772,0.44104679,87038.0,87037.0,0.3608]
[1764655342174,0.0671005,87034.0,87033.0,0.00017225]
[1764655342374,0.07317,87024.0,87023.0,0.1191791]
[1764655342675,0.14317,87024.0,87023.0,0.05717]
[1764655343886,0.14317,87024.0,87023.0,0.06874248]
[1764655344088,0.14617,87024.0,87023.0,0.06874248]
[1764655344885,0.14717,87024.0,87023.0,0.06874248]
[1764655346581,0.07717,87024.0,87023.0,0.06874248]
[1764655346786,0.36717,87024.0,87023.0,0.06874248]
[1764655347171,0.36717,87024.0,87023.0,0.05717]
[1764655347375,0.36717,87024.0,87021.0,0.3608]
[1764655347376,0.05561,87022.0,87021.0,0.39046]
[1764655347672,0.05561,87016.0,87015.0,0.1191791]
[1764655348283,0.05561,87016.0,87015.0,0.05717]
[1764655348683,0.0691029,87016.0,87015.0,0.05717]
[1764655348878,0.05761,87016.0,87015.0,0.05717]
[1764655349483,0.05761,87016.0,87015.0,0.06889447]
[1764655350086,0.0671036,87011.0,87010.0,0.4799791]
[1764655350280,0.05561,87011.0,87010.0,0.42940533]
[1764655350784,0.05561,87008.0,87007.0,0.00013935]
[1764655350984,0.49561,87008.0,87007.0,0.00013935]
[1764655351992,0.49661,87008.0,87007.0,0.00013935]
[1764655352588,0.18661,87008.0,87007.0,0.06958345]
[1764655352790,0.198104,87008.0,87007.0,0.06958345]
[1764655353481,0.18661,87008.0,87007.0,0.06958345]
[1764655354694,0.05661,87008.0,87007.0,0.06958345]
[1764655356284,0.001,87008.0,87007.0,0.06958345]
[1764655356682,0.05872,87008.0,87007.0,0.06958345]
[1764655356889,0.05872,87008.0,87007.0,0.00013935]
[1764655357483,0.05872,87008.0,87007.0,0.02720935]
[1764655357684,0.05872,87008.0,87007.0,0.05427935]
[1764655365193,0.0756,87008.0,87007.0,0.05427935]
[1764655370204,0.0756,87008.0,87007.0,0.02720935]
[1764655370604,0.4656,87008.0,87007.0,0.00013935]
[1764655371202,0.49010506,87008.0,87007.0,0.00013935]
[1764655371601,0.49010506,87008.0,87007.0,0.02720935]
[1764655373202,0.10010506,87008.0,87007.0,0.05427935]
[1764655373504,0.001,87008.0,87007.0,0.05427935]
[1764655377109,0.05872,87008.0,87007.0,0.05427935]
[1764655380520,0.0756,87008.0,87007.0,0.05427935]
[1764655381607,0.10018444,87008.0,87007.0,0.00013935]
[1764655381820,0.40018444,87008.0,87007.0,0.00013935]
[1764655382315,0.14018444,87008.0,87007.0,0.05427935]
[1764655382716,0.14018399,87008.0,87007.0,0.05427935]
[1764655385922,0.14018399,87008.0,87007.0,0.02720935]
[1764655386215,0.14018399,87008.0,87007.0,0.00013935]
[1764655386411,0.39018399,87008.0,87007.0,0.00013935]
[1764655390820,0.39018399,87008.0,87007.0,0.05771935]
[1764655391514,0.15018399,87008.0,87007.0,0.05771935]
[1764655392217,0.15018399,87008.0,87007.0,0.00013935]
[1764655392429,0.50018399,87008.0,87007.0,0.00013935]
[1764655392619,0.05795,86997.0,86996.0,0.4001855]
[1764655392923,0.05795,86997.0,86996.0,0.44155237]
[1764655393722,0.05803547,86997.0,86996.0,0.44155237]
[1764655394021,0.05803547,86997.0,86996.0,0.44255237]
[1764655396623,0.05803547,86997.0,86996.0,0.43105687]
[1764655396926,0.05803547,86997.0,86996.0,0.40136687]
[1764655398126,0.05803547,86997.0,86996.0,0.43105687]
[1764655407230,0.02866547,86997.0,86996.0,0.43105687]
[1764655407421,8.547e-05,86997.0,86996.0,0.44664687]
[1764655407734,0.05803547,86997.0,86996.0,0.44664687]
[1764655407932,0.06953087,86997.0,86996.0,0.43105687]
[1764655409928,0.48953087,86997.0,86996.0,0.001]
[1764655410236,0.51412274,86997.0,86996.0,0.001]
[1764655410436,0.0694466,86988.0,86981.0,0.0620091]
[1764655410637,0.0694474,86982.0,86981.0,0.05758]
[1764655410833,0.07533,86980.0,86979.0,0.37249348]
[1764655411336,0.07533,86980.0,86979.0,0.42769348]
[1764655411936,0.51533,86980.0,86979.0,0.416]
[1764655413141,0.51533,86980.0,86979.0,0.417]
[1764655413537,0.51533,86980.0,86979.0,0.4284978]
[1764655414036,0.51533,86980.0,86979.0,0.43994716]
[1764655414037,0.02457011,86980.0,86979.0,0.43994716]
[1764655414341,9.591e-05,86982.0,86981.0,0.05529]
[1764655416933,0.06191384,87027.0,87026.0,0.05529]
[1764655417132,0.02457734,87027.0,87026.0,0.05529]
[1764655417330,0.43089798,87047.0,87046.0,0.05529]
[1764655417534,0.81544953,87047.0,87046.0,0.05529]
[1764655417744,0.80382155,87047.0,87046.0,0.02753]
[1764655417935,0.51388867,87047.0,87046.0,0.05529]
[1764655418238,0.05847,87039.0,87038.0,0.02770235]
[1764655418545,0.45847,87039.0,87038.0,0.02770235]
[1764655418738,0.45847,87039.0,87038.0,0.05546235]
[1764655419052,0.45847,87039.0,87038.0,0.00017235]
[1764655419843,0.46147,87039.0,87038.0,0.00017235]
[1764655420234,0.45847,87039.0,87038.0,0.00017235]
[1764655420433,0.48697267,87039.0,87038.0,0.00017235]
[1764655420734,0.84883979,87039.0,87038.0,0.00017235]
[1764655420938,0.05847,87027.0,87026.0,0.3608]
[1764655421145,0.49853712,87027.0,87026.0,0.3608]
[1764655422340,0.49953712,87027.0,87026.0,0.3608]
[1764655422530,0.05847,87013.0,87012.0,0.0667833]
[1764655422936,0.05847,87011.0,87010.0,0.3608]
[1764655423136,0.49847,87011.0,87010.0,0.3608]
[1764655425547,0.49947,87011.0,87010.0,0.3608]
[1764655427241,0.28947,87011.0,87010.0,0.3608]
[1764655430555,0.07589,87003.0,87002.0,0.41609]
[1764655430736,0.35589,87003.0,87002.0,0.41609]
[1764655432254,0.35589,87003.0,87002.0,0.4275847]
[1764655432955,0.07589,87003.0,87002.0,0.4275847]
[1764655433341,0.07789,87003.0,87002.0,0.4275847]
[1764655434748,0.07789,87003.0,87002.0,0.05529]
[1764655437053,0.47789,87003.0,87002.0,0.02753]
[1764655438063,0.47789,87003.0,87002.0,0.05529]
[1764655438453,0.05847,86999.0,86998.0,0.41609]
[1764655438653,0.48853712,86999.0,86998.0,0.41609]
[1764655439166,0.05853712,86999.0,86998.0,0.41609]
[1764655439869,0.05953712,86999.0,86998.0,0.41609]
[1764655440365,0.00106712,86999.0,86998.0,0.41609]
[1764655440963,0.00017235,87011.0,87010.0,0.0667837]
[1764655441357,0.02934235,87011.0,87010.0,0.0667837]
[1764655441574,0.05864235,87011.0,87010.0,0.05529]
[1764655442383,0.06064235,87011.0,87010.0,0.05529]
[1764655443287,0.06164235,87011.0,87010.0,0.05529]
[1764655443890,0.00317235,87011.0,87010.0,0.05529]
[1764655444688,0.00117235,87011.0,87010.0,0.05529]
[1764655444888,0.00417235,87011.0,87010.0,0.05529]
[1764655445291,0.00117235,87011.0,87010.0,0.55529]
[1764655445587,0.00317235,87011.0,87010.0,0.55529]
[1764655446183,0.00217235,87011.0,87010.0,0.55529]
[1764655446986,0.03132235,87011.0,87010.0,0.55529]
[1764655447489,0.02932235,87011.0,87010.0,0.55529]
[1764655447691,0.03032235,87011.0,87010.0,0.55529]
[1764655448085,0.03032235,87011.0,87010.0,0.91609]
[1764655448486,0.02932235,87011.0,87010.0,0.91609]
[1764655448685,0.03132235,87011.0,87010.0,0.91609]
[1764655452190,0.00217235,87011.0,87010.0,0.91609]